bitfinex-derivatives/quotes_SOLF0:USTF0_20250211
["timestamp","ask_amount","ask_price","bid_price","bid_amount"]
[1739310163789,8.81749697,198.4,198.38,5.041]
[1739310164195,8.81749697,198.4,198.37,0.0345989]
[1739310164793,8.78424954,198.38,198.37,0.0345989]
[1739310165088,8.78424954,198.38,198.33,6.87816971]
[1739310165288,8.78424954,198.36,198.33,6.87816971]
[1739310165996,8.78424954,198.38,198.33,6.87816971]
[1739310166297,1.4766,198.39,198.33,15.66241925]
[1739310167190,1.4766,198.39,198.36,5.0413]
[1739310167497,1.4766,198.39,198.33,15.66241925]
[1739310167898,1.4766,198.39,198.37,5.0411]
[1739310168495,1.4766,198.39,198.33,15.66241925]
[1739310168697,8.78424954,198.38,198.31,8.78424954]
[1739310170595,13.82544954,198.38,198.34,5.0418]
[1739310170788,13.82544954,198.38,198.31,8.78424954]
[1739310172197,13.82544954,198.38,198.33,5.0423]
[1739310172393,8.78424954,198.36,198.3,92.75195541]
[1739310172601,8.78424954,198.34,198.3,92.75195541]
[1739310173799,13.82644954,198.34,198.3,92.75195541]
[1739310174200,8.78424954,198.34,198.3,92.75195541]
[1739310174495,0.03712174,198.35,198.3,92.75195541]
[1739310174900,0.03712174,198.35,198.33,5.0421]
[1739310177000,8.78424954,198.34,198.33,5.0421]
[1739310178302,8.78424954,198.34,198.32,5.0425]
[1739310178597,8.78424954,198.34,198.27,8.78424954]
[1739310179601,0.03712174,198.35,198.33,8.78424954]
[1739310180101,0.03712174,198.35,198.31,8.78424954]
[1739310180407,0.03712174,198.35,198.34,5.0421]
[1739310181104,0.03712174,198.35,198.27,8.78424954]
[1739310181304,8.78424954,198.34,198.27,8.78424954]
[1739310181601,8.78424954,198.34,198.3,5.0428]
[1739310181799,8.78424954,198.34,198.27,8.78424954]
[1739310182004,8.78424954,198.32,198.26,92.77167819]
[1739310182405,0.03658903,198.31,198.26,92.77167819]
[1739310182707,0.03658903,198.31,198.3,5.0431]
[1739310185711,0.03658903,198.31,198.26,92.77167819]
[1739310186011,8.78424954,198.28,198.26,92.77167819]
[1739310186308,5.044,198.27,198.22,20.15833227]
[1739310186505,8.78424954,198.23,198.22,20.15833227]
[1739310186812,8.78424954,198.23,198.21,54.80816683]
[1739310187709,18.8249379,198.26,198.21,54.80816683]
[1739310188105,5.0444,198.25,198.21,54.80816683]
[1739310188509,0.03496806,198.26,198.21,54.80816683]
[1739310189510,0.03496806,198.26,198.16,13.74586984]
[1739310189809,5.07916806,198.26,198.2,5.0456]
[1739310190011,0.03496806,198.26,198.16,13.74586984]
[1739310190606,5.0446,198.24,198.19,5.0459]
[1739310190807,13.7808379,198.26,198.13,13.74586984]
[1739310191006,13.74586984,198.26,198.13,13.74586984]
[1739310191306,0.03381407,198.22,198.13,13.74586984]
[1739310191502,0.03381407,198.22,198.12,92.81310386]
[1739310191704,0.03381407,198.22,198.11,0.4299]
[1739310192812,5.0457,198.2,198.16,5.0466]
[1739310193511,5.0454,198.21,198.17,5.0464]
[1739310193715,5.0454,198.21,198.11,93.26281294]
[1739310194212,5.0454,198.21,198.16,5.0464]
[1739310194508,0.03381407,198.22,198.11,93.26281294]
[1739310194710,13.74586984,198.2,198.13,5.0472]
[1739310194905,0.03277668,198.18,198.13,5.0472]
[1739310195714,5.0464,198.17,198.13,5.0472]
[1739310196413,5.07887668,198.18,198.13,5.0474]
[1739310196615,5.07887668,198.18,198.11,0.4299]
[1739310197109,0.03277668,198.18,198.11,0.4299]
[1739310197511,0.03277668,198.18,198.13,13.74586984]
[1739310197716,0.03277668,198.18,198.17,5.0464]
[1739310198412,7.668e-05,198.18,198.17,5.0464]
[1739310199216,7.668e-05,198.18,198.17,6.6619]
[1739310199419,78.34576574,198.29,198.24,5.0444]
[1739310199622,78.34576574,198.29,198.19,13.74586984]
[1739310199919,87.04813558,198.29,198.19,13.74586984]
[1739310200215,5.0444,198.25,198.17,1.6155]
[1739310200619,0.03439736,198.23,198.19,0.0325173]
[1739310202223,0.03439736,198.23,198.22,5.0451]
[1739310207618,5.0433,198.3,198.27,5.0438]
[1739310208121,13.74586984,198.32,198.2,16.70436984]
[1739310208322,13.74586984,198.32,198.2,2.9585]
[1739310208727,0.03740371,198.28,198.24,0.03232336]
[1739310209022,13.74586984,198.29,198.17,15.36136984]
[1739310209223,5.0443,198.25,198.24,0.03524546]
[1739310209523,0.03356134,198.28,198.24,0.03524546]
[1739310210823,0.03356134,198.28,198.27,5.0438]
[1739310211421,0.03356134,198.28,198.25,5.0441]
[1739310212427,0.03356134,198.28,198.24,0.03524546]
[1739310213725,0.03356134,198.28,198.25,5.0443]
[1739310213929,0.03356134,198.28,198.24,0.03524546]
[1739310214323,0.03356134,198.28,198.25,5.0442]
[1739310214530,0.03356134,198.28,198.24,0.03524546]
[1739310214828,0.03356134,198.28,198.25,5.0443]
[1739310217633,0.03356134,198.28,198.24,0.03524546]
[1739310217931,0.03356134,198.28,198.26,5.044]
[1739310221342,0.03356134,198.28,198.25,5.0443]
[1739310221543,0.03356134,198.28,198.24,0.03524546]
[1739310222245,0.03356134,198.28,198.27,5.0438]
[1739310245164,8.78947678,198.39,198.26,8.78947678]
[1739310245364,8.78947678,198.41,198.34,8.78947678]
[1739310245662,4.5859,198.42,198.36,8.78947678]
[1739310245962,8.78947678,198.47,198.4,8.78947678]
[1739310246362,0.03436531,198.45,198.42,0.03607308]
[1739310246660,8.82384209,198.45,198.42,0.03607308]
[1739310246860,13.86334209,198.45,198.42,0.03607308]
[1739310247664,0.03436531,198.45,198.43,5.0397]
[1739310248164,0.03436531,198.45,198.42,5.07607308]
[1739310248359,0.03436531,198.45,198.42,0.03607308]
[1739310248863,0.03436531,198.45,198.42,5.07607308]
[1739310249058,8.82384209,198.45,198.42,0.03607308]
[1739310249466,8.78947678,198.43,198.42,0.03607308]
[1739310249765,13.82927678,198.43,198.42,0.03607308]
[1739310252267,8.82384209,198.45,198.42,0.03607308]
[1739310252467,5.0395,198.44,198.42,0.03607308]
[1739310252867,8.82384209,198.45,198.42,0.03607308]
[1739310253063,0.03436531,198.45,198.42,0.03607308]
[1739310254862,5.07366531,198.45,198.42,0.03607308]
[1739310255067,0.03436531,198.45,198.42,5.07597308]
[1739310256274,0.03436531,198.45,198.43,5.0395]
[1739310262476,0.03436531,198.45,198.42,0.03607308]
[1739310262676,5.07366531,198.45,198.42,5.07597308]
[1739310263376,0.03436531,198.45,198.43,5.0398]
[1739310263676,0.03436531,198.45,198.42,0.03607308]
[1739310264768,5.07366531,198.45,198.42,5.07607308]
[1739310265370,5.0398,198.43,198.42,0.03607308]
[1739310265579,13.82927678,198.43,198.42,0.03607308]
[1739310266168,8.78947678,198.43,198.42,0.03607308]
[1739310266475,5.0396,198.44,198.42,0.03607308]
[1739310267379,8.82384209,198.45,198.42,0.03607308]
[1739310268282,5.0395,198.44,198.42,0.03607308]
[1739310270779,5.0398,198.43,198.42,0.03607308]
[1739310271581,5.0396,198.44,198.42,0.03607308]
[1739310274281,8.82384209,198.45,198.42,0.03607308]
[1739310274282,0.03436531,198.45,198.42,0.03607308]
[1739310274885,8.82384209,198.45,198.42,0.03607308]
[1739310275789,5.0397,198.44,198.42,0.03607308]
[1739310276584,8.82384209,198.45,198.42,0.03607308]
[1739310276787,5.0395,198.44,198.42,0.03607308]
[1739310277491,13.82927678,198.43,198.42,0.03607308]
[1739310279987,0.03436531,198.45,198.42,0.03607308]
[1739310280493,0.03436531,198.45,198.42,5.07587308]
[1739310281200,5.0395,198.44,198.42,0.03607308]
[1739310282691,8.82384209,198.45,198.42,0.03607308]
[1739310283491,0.03436531,198.45,198.42,0.03607308]
[1739310284092,0.03436531,198.45,198.42,5.07587308]
[1739310284895,5.07376531,198.45,198.42,0.03607308]
[1739310285095,8.82384209,198.45,198.42,0.03607308]
[1739310286095,5.0397,198.44,198.42,0.03607308]
[1739310286297,0.03436531,198.45,198.42,0.03607308]
[1739310286899,0.03436531,198.45,198.44,8.78947678]
[1739310287290,0.03436531,198.45,198.44,13.82897678]
[1739310289605,73.21360841,198.53,198.49,5.0381]
[1739310289896,73.21360841,198.53,198.48,8.78947678]
[1739310290101,8.78947678,198.56,198.48,8.78947678]
[1739310290301,8.78947678,198.56,198.52,5.0374]
[1739310290800,8.82511329,198.56,198.52,5.06934163]
[1739310291503,0.03563651,198.56,198.53,5.037]
[1739310292298,0.03563651,198.56,198.54,5.0369]
[1739310293502,0.03563651,198.56,198.53,5.0372]
[1739310294302,13.86181329,198.56,198.52,5.06934163]
[1739310295104,5.0368,198.55,198.52,5.06934163]
[1739310295303,8.78947678,198.54,198.52,0.03194163]
[1739310296897,13.82647678,198.54,198.52,0.03194163]
[1739310297098,8.82511329,198.56,198.53,5.0372]
[1739310297302,8.82511329,198.56,198.52,0.03194163]
[1739310298404,0.03563651,198.56,198.52,8.82141841]
[1739310298602,0.03563651,198.56,198.52,0.03194163]
[1739310298802,8.82511329,198.56,198.52,0.03194163]
[1739310299406,8.82511329,198.56,198.53,5.0372]
[1739310299702,0.03563651,198.56,198.52,0.03194163]
[1739310300306,8.82511329,198.56,198.52,0.03194163]
[1739310300908,5.0372,198.53,198.52,0.03194163]
[1739310301109,8.78947678,198.54,198.52,0.03194163]
[1739310301609,13.82667678,198.54,198.52,0.03194163]
[1739310302005,8.78947678,198.54,198.52,0.03194163]
[1739310302204,5.0372,198.53,198.52,0.03194163]
[1739310302607,8.78947678,198.54,198.43,1.5844]
[1739310302907,8.78947678,198.49,198.43,1.5844]
[1739310303109,8.78947678,198.49,198.44,8.78947678]
[1739310303408,8.78947678,198.47,198.42,6.89595036]
[1739310303908,8.78947678,198.45,198.43,0.03352327]
[1739310304104,8.78947678,198.45,198.42,6.89595036]
[1739310304300,3.1645,198.55,198.42,6.93084655]
[1739310304301,8.78947678,198.43,198.42,6.93084655]
[1739310304506,8.78947678,198.43,198.42,6.89595036]
[1739310304507,13.82927678,198.43,198.42,6.89595036]
[1739310305404,13.82927678,198.43,198.41,0.03714998]
[1739310305709,5.04,198.42,198.41,0.03714998]
[1739310306707,8.78947678,198.43,198.35,6.89595036]
[1739310306905,8.78947678,198.37,198.35,6.89595036]
[1739310307406,8.78947678,198.37,198.3,8.78947678]
[1739310307805,0.03315076,198.35,198.32,0.03521823]
[1739310308005,0.03315076,198.35,198.34,5.042]
[1739310309913,0.03315076,198.35,198.32,5.07751823]
[1739310310115,8.82262754,198.35,198.32,0.03521823]
[1739310310608,13.86442754,198.35,198.32,0.03521823]
[1739310311413,13.83177678,198.33,198.32,0.03521823]
[1739310311710,8.78947678,198.33,198.24,27.52487233]
[1739310311912,8.78947678,198.28,198.25,5.0443]
[1739310312303,8.78947678,198.28,198.22,36.31434911]
[1739310312711,8.78947678,198.28,198.24,5.0446]
[1739310312912,0.03361657,198.27,198.23,0.03624167]
[1739310313115,0.03361657,198.27,198.25,5.0441]
[1739310313313,0.03361657,198.27,198.24,8.78947678]
[1739310313713,0.03361657,198.27,198.23,0.03624167]
[1739310314213,5.0444,198.25,198.23,0.03624167]
[1739310314807,5.0441,198.26,198.23,0.03624167]
[1739310315409,5.0444,198.25,198.23,0.03624167]
[1739310315607,13.73799518,198.26,198.23,0.03624167]
[1739310316513,16.93229518,198.26,198.23,0.03624167]
[1739310317116,5.0446,198.24,198.23,0.03624167]
[1739310317315,16.93229518,198.26,198.23,0.03624167]
[1739310317714,5.0446,198.25,198.23,0.03624167]
[1739310318017,16.93229518,198.26,198.23,0.03624167]
[1739310318220,5.045,198.23,198.14,1.5319]
[1739310318517,16.93229518,198.26,198.17,5.0462]
[1739310319017,13.73799518,198.23,198.11,13.73799518]
[1739310319316,13.73799518,198.2,198.09,4.5402]
[1739310319617,0.03465001,198.19,198.14,5.0471]
[1739310320218,0.03465001,198.19,198.09,4.5402]
[1739310321016,0.03465001,198.19,198.11,13.73799518]
[1739310321516,0.03465001,198.19,198.16,5.0465]
[1739310321814,0.03465001,198.19,198.09,4.5402]
[1739310322521,5.0469,198.15,198.11,5.0479]
[1739310323020,0.03422904,198.15,198.05,13.73799518]
[1739310324116,5.08112904,198.15,198.1,5.0482]
[1739310325219,5.0472,198.14,198.1,5.0482]
[1739310325420,0.03422904,198.15,198.05,13.73799518]
[1739310325720,5.0474,198.14,198.02,13.73799518]
[1739310325916,13.73799518,198.17,198.08,5.0487]
[1739310326121,0.03450257,198.1,198.08,5.0487]
[1739310326314,13.73799518,198.17,198.08,5.0487]
[1739310326617,0.03276089,198.11,198.08,5.0487]
[1739310327122,0.03276089,198.11,198.09,5.0483]
[1739310327324,0.03276089,198.11,198.02,13.73799518]
[1739310327521,0.03276089,198.11,198.07,5.0488]
[1739310327722,0.03276089,198.11,198.02,13.73799518]
[1739310327923,0.03276089,198.11,198.01,4.5512]
[1739310328124,13.77075607,198.11,198.01,4.5512]
[1739310328517,5.0484,198.1,198.01,4.5512]
[1739310328721,5.0484,198.1,198.05,5.0492]
[1739310329022,13.77075607,198.11,198.05,5.0492]
[1739310329222,13.77075607,198.11,198.01,4.5512]
[1739310329627,0.03276089,198.11,198.02,13.73799518]
[1739310331122,0.03276089,198.11,198.04,5.0495]
[1739310331323,0.03276089,198.11,198.02,13.73799518]
[1739310331722,5.08086089,198.11,198.06,5.0491]
[1739310331926,0.03276089,198.11,198.06,5.0491]
[1739310332422,0.03276089,198.11,198.01,4.5512]
[1739310333131,0.03276089,198.11,198.02,13.73799518]
[1739310334630,0.03276089,198.11,198.08,5.0484]
[1739310335628,0.03276089,198.11,198.05,8.80755283]
[1739310335821,0.03276089,198.11,198.1,5.0482]
[1739310336521,6.089e-05,198.11,198.1,5.0482]
[1739310337124,6.089e-05,198.11,198.05,8.80755283]
[1739310337324,8.80755283,198.08,198.01,13.35875283]
[1739310337825,0.03754215,198.06,198.03,0.03344223]
[1739310338025,0.03754215,198.06,198.03,8.84099506]
[1739310338628,0.03754215,198.06,198.05,5.0494]
[1739310339625,0.03754215,198.06,198.03,0.03344223]
[1739310339827,8.84509498,198.06,198.04,5.0497]
[1739310340133,8.84509498,198.06,198.03,0.03344223]
[1739310340336,8.80755283,198.04,198.03,0.03344223]
[1739310341735,13.81039675,198.06,198.03,0.03344223]
[1739310342226,18.85959675,198.06,198.03,0.03344223]
[1739310342427,13.81039675,198.06,198.03,0.03344223]
[1739310343037,13.81039675,198.06,197.98,5.051]
[1739310343234,13.7728546,198.02,197.95,4.7402]
[1739310343638,13.7728546,198.05,197.95,4.7402]
[1739310344229,0.03756426,198.02,198.0,5.0505]
[1739310345030,0.03756426,198.02,197.95,4.7402]
[1739310345338,0.03756426,198.02,198.01,5.0505]
[1739310347641,13.7728546,198.08,198.03,5.0499]
[1739310348135,13.7728546,198.08,197.96,27.52487233]
[1739310348436,13.7728546,198.05,197.98,6.89595036]
[1739310348838,0.03305623,198.03,198.0,5.08249248]
[1739310349139,13.7728546,198.05,198.0,0.03189248]
[1739310349438,5.0498,198.04,198.0,5.08259248]
[1739310349835,13.7728546,198.02,198.0,0.03189248]
[1739310350339,18.8232546,198.02,198.0,0.03189248]
[1739310351635,13.7728546,198.02,198.0,0.03189248]
[1739310352735,13.7728546,198.02,198.01,5.0505]
[1739310353042,13.7728546,198.02,198.0,0.03189248]
[1739310353631,0.03207229,198.03,198.0,0.03189248]
[1739310353836,0.03207229,198.03,198.01,5.0504]
[1739310354141,0.03207229,198.03,198.0,0.03189248]
[1739310354942,0.03207229,198.03,198.02,5.0502]
[1739310356043,0.03207229,198.03,198.0,0.03189248]
[1739310356440,0.03207229,198.03,198.0,5.08259248]
[1739310356640,0.03207229,198.03,198.0,0.03189248]
[1739310357746,0.03207229,198.03,198.02,5.0502]
[1739310358541,7.229e-05,198.03,198.02,5.0502]
[1739310360349,7.229e-05,198.03,198.02,9.7695272]
[1739310361645,7.229e-05,198.03,198.02,18.57544578]
[1739310361846,8.80591858,198.15,198.12,5.0474]
[1739310362048,8.80591858,198.15,198.09,8.80591858]
[1739310362949,0.03667169,198.14,198.1,0.03418124]
[1739310363647,0.03667169,198.14,198.12,5.0476]
[1739310363947,0.03667169,198.14,198.1,0.03418124]
[1739310364350,0.03667169,198.14,198.11,5.0477]
[1739310365350,8.80591858,198.13,198.1,0.03418124]
[1739310366349,8.80591858,198.11,198.1,0.03418124]
[1739310366955,99.94,198.32,198.1,8.84009982]
[1739310367251,0.92749099,198.28,198.25,8.80591858]
[1739310367453,9.60781861,198.31,198.25,8.80591858]
[1739310367649,8.80591858,198.36,198.29,5.0433]
[1739310367850,8.80591858,198.36,198.29,13.84921858]
[1739310368045,8.80591858,198.38,198.31,8.80591858]
[1739310368249,0.03575008,198.34,198.31,8.83853649]
[1739310368452,139.83635764,198.4,198.33,8.80591858]
[1739310368757,139.83635764,198.4,198.37,8.80591858]
[1739310369258,8.80591858,198.44,198.4,5.0404]
[1739310369556,8.80591858,198.44,198.35,13.71582219]
[1739310369760,0.03806047,198.44,198.4,0.03513434]
[1739310370358,13.71582219,198.42,198.4,0.03513434]
[1739310370559,13.71582219,198.42,198.26,16.78372219]
[1739310370860,13.71582219,198.39,198.26,16.78372219]
[1739310371062,13.71582219,198.42,198.29,13.71582219]
[1739310371263,13.71582219,198.45,198.38,5.041]
[1739310371467,13.71582219,198.48,198.32,13.71582219]
[1739310371756,0.03583088,198.43,198.4,0.03528876]
[1739310371956,0.03583088,198.43,198.41,5.0402]
[1739310372260,3.088e-05,198.43,198.41,5.0402]
[1739310372961,3.088e-05,198.43,198.41,18.75602219]
[1739310373761,3.088e-05,198.43,198.41,6.5489]
[1739310374758,3.088e-05,198.43,198.42,21.93296353]
[1739310374958,3.041,198.59,198.42,21.93296353]
[1739310375162,3.041,198.59,198.45,21.93296353]
[1739310375357,23.43446353,198.63,198.52,5.0375]
[1739310376059,23.43446353,198.63,198.48,21.93296353]
[1739310376060,0.03470071,198.59,198.56,0.03665997]
[1739310380871,0.03470071,198.59,198.56,5.07295997]
[1739310381170,0.03470071,198.59,198.56,0.03665997]
[1739310381371,0.03470071,198.59,198.57,5.0361]
[1739310382269,0.03470071,198.59,198.58,5.036]
[1739310384172,5.0342,198.65,198.58,5.036]
[1739310384568,4.6947,198.67,198.56,0.03665997]
[1739310385376,0.03327207,198.63,198.58,5.0359]
[1739310385874,0.03327207,198.63,198.59,0.03703609]
[1739310386473,0.03327207,198.63,198.59,5.07253609]
[1739310386673,0.03327207,198.63,198.59,0.03703609]
[1739310387073,0.03327207,198.63,198.59,5.07253609]
[1739310387275,0.03327207,198.63,198.59,0.03703609]
[1739310387976,9.7286,198.67,198.59,0.03703609]
[1739310388379,4.6947,198.67,198.59,0.03703609]
[1739310388774,21.93296353,198.66,198.59,0.03703609]
[1739310389279,0.03273706,198.64,198.59,0.03703609]
[1739310390977,0.03273706,198.64,198.63,5.0347]
[1739310391483,0.03273706,198.64,198.61,5.035]
[1739310391779,0.03273706,198.64,198.59,0.03703609]
[1739310391981,0.03273706,198.64,198.59,5.07253609]
[1739310392172,0.03273706,198.64,198.59,0.03703609]
[1739310392973,21.93296353,198.63,198.59,0.03703609]
[1739310393178,5.0355,198.6,198.59,0.03703609]
[1739310395987,21.93296353,198.6,198.52,5.0375]
[1739310396178,21.93296353,198.6,198.5,92.64615027]
[1739310397286,21.93296353,198.6,198.53,0.03483423]
[1739310397287,0.03323071,198.57,198.53,0.03483423]
[1739310397681,5.037,198.54,198.53,0.03483423]
[1739310398684,5.0368,198.55,198.53,0.03483423]
[1739310398985,0.03670814,198.55,198.53,0.03483423]
[1739310399382,5.037,198.54,198.53,0.03483423]
[1739310403690,18.74431923,198.54,198.53,0.03483423]
[1739310404192,13.70731923,198.54,198.45,11.51437581]
[1739310404389,13.70731923,198.51,198.45,11.51437581]
[1739310404793,5.039,198.46,198.45,11.51437581]
[1739310405595,5.07063801,198.47,198.45,11.51437581]
[1739310405993,0.03183801,198.47,198.44,0.03271865]
[1739310406595,5.07083801,198.47,198.44,0.03271865]
[1739310407096,0.03183801,198.47,198.44,0.03271865]
[1739310407400,5.0393,198.45,198.44,0.03271865]
[1739310409598,5.0395,198.44,198.43,6.89595036]
[1739310409800,5.0395,198.44,198.43,4.47195036]
[1739310410201,5.0395,198.44,198.43,2.04785036]
[1739310411002,5.0392,198.46,198.42,0.03810244]
[1739310411601,0.03183801,198.47,198.42,0.03810244]
[1739310412205,21.93908422,198.62,198.45,21.93908422]
[1739310412403,1.5238,198.61,198.48,21.93908422]
[1739310412599,21.93908422,198.65,198.49,3.0959]
[1739310413503,21.93908422,198.65,198.51,21.93908422]
[1739310413702,5.0337,198.67,198.59,5.0357]
[1739310414004,0.03396715,198.6,198.51,21.93908422]
[1739310414203,1.5238,198.68,198.61,0.03610576]
[1739310414500,21.93908422,198.77,198.6,21.93908422]
[1739310414704,0.03673789,198.66,198.63,0.03629083]
[1739310414905,5.0317,198.75,198.63,0.03629083]
[1739310415105,9.985e-05,198.66,198.61,3.1646]
[1739310415308,21.93908422,198.77,198.63,21.93908422]
[1739310416002,26.97038422,198.77,198.63,21.93908422]
[1739310416397,0.03339702,198.72,198.68,0.03643861]
[1739310419605,5.0327,198.71,198.68,0.03643861]
[1739310419918,0.03339702,198.72,198.68,0.03643861]
[1739310420211,5.0327,198.71,198.68,0.03643861]
[1739310420804,0.03339702,198.72,198.68,0.03643861]
[1739310421016,21.93908422,198.71,198.68,0.03643861]
[1739310422308,21.93908422,198.71,198.57,92.61088705]
[1739310422514,21.93908422,198.71,198.56,3.1203]
[1739310422717,21.93908422,198.68,198.56,3.1203]
[1739310423112,1.5514,198.67,198.56,3.1203]
[1739310423311,0.03685128,198.64,198.6,0.03611513]
[1739310424811,5.07135128,198.64,198.6,0.03611513]
[1739310425213,0.03685128,198.64,198.6,0.03611513]
[1739310425414,0.03685128,198.64,198.61,5.0351]
[1739310425708,1.5514,198.75,198.6,0.03611513]
[1739310425913,1.5514,198.75,198.56,3.1203]
[1739310425914,1.5514,198.75,198.61,21.93908422]
[1739310426106,23.55408422,198.77,198.61,21.93908422]
[1739310426311,1.5189,198.76,198.61,21.93908422]
[1739310426513,1.5189,198.76,198.64,5.0343]
[1739310426814,1.5189,198.76,198.61,21.93908422]
[1739310427013,5.033,198.7,198.68,0.03293601]
[1739310427910,5.0332,198.69,198.68,0.03293601]
[1739310429117,5.0329,198.71,198.68,0.03293601]
[1739310429513,0.03877787,198.72,198.68,0.03293601]
[1739310430612,21.93908422,198.7,198.56,3.1203]
[1739310430913,5.0349,198.63,198.56,3.1203]
[1739310431216,5.0349,198.63,198.58,5.0357]
[1739310431517,5.0353,198.61,198.56,3.1203]
[1739310431814,5.0353,198.61,198.59,0.03406453]
[1739310432014,0.03560979,198.62,198.59,0.03406453]
[1739310432215,5.0355,198.6,198.59,0.03406453]
[1739310433708,21.93908422,198.61,198.41,76.74725105]
[1739310433906,21.93908422,198.56,198.45,1.6034]
[1739310434320,5.038,198.5,198.45,1.6034]
[1739310434612,21.93908422,198.53,198.45,1.6034]
[1739310434814,5.038,198.5,198.45,1.6034]
[1739310435017,0.03513332,198.49,198.46,0.0322046]
[1739310436015,0.03513332,198.49,198.47,5.0388]
[1739310437113,5.0364,198.57,198.46,0.0322046]
[1739310437514,5.0364,198.57,198.45,1.6034]
[1739310437715,5.0364,198.57,198.49,5.038]
[1739310438114,5.0365,198.56,198.49,5.038]
[1739310438319,0.0318024,198.55,198.51,0.03538775]
[1739310438915,5.037,198.54,198.51,0.03538775]
[1739310439110,0.0318024,198.55,198.51,0.03538775]
[1739310440218,5.0686024,198.55,198.51,0.03538775]
[1739310440413,0.0318024,198.55,198.51,0.03538775]
[1739310441019,5.037,198.54,198.51,0.03538775]
[1739310441521,0.0318024,198.55,198.51,0.03538775]
[1739310441721,5.0686024,198.55,198.51,0.03538775]
[1739310441916,0.0318024,198.55,198.51,0.03538775]
[1739310442521,5.0372,198.54,198.51,0.03538775]
[1739310443214,5.0373,198.53,198.51,0.03538775]
[1739310443418,0.0318024,198.55,198.51,0.03538775]
[1739310444022,5.0375,198.52,198.51,0.03538775]
[1739310445214,21.93908422,198.53,198.51,0.03538775]
[1739310445421,26.97638422,198.53,198.51,0.03538775]
[1739310445622,5.0373,198.53,198.51,0.03538775]
[1739310446524,5.0375,198.52,198.51,0.03538775]
[1739310447722,21.93908422,198.53,198.43,5.0397]
[1739310447923,5.0391,198.46,198.43,5.0397]
[1739310448224,21.93908422,198.5,198.39,4.6402]
[1739310448822,5.0403,198.41,198.32,20.62892197]
[1739310449019,0.03758149,198.46,198.43,0.03804807]
[1739310449421,5.0399,198.43,198.39,5.0408]
[1739310449826,5.0393,198.45,198.39,0.03526905]
[1739310450928,5.0393,198.45,198.39,5.07576905]
[1739310451128,5.0393,198.45,198.39,0.03526905]
[1739310451320,0.03299682,198.46,198.39,0.03526905]
[1739310452024,5.0402,198.42,198.39,0.03526905]
[1739310452728,0.03299682,198.46,198.39,0.03526905]
[1739310453433,0.03299682,198.46,198.43,5.0397]
[1739310454429,5.0394,198.45,198.41,5.0401]
[1739310454632,0.03299682,198.46,198.39,0.03526905]
[1739310454832,0.03299682,198.46,198.4,5.0403]
[1739310455332,5.04,198.42,198.39,0.03526905]
[1739310455528,0.03299682,198.46,198.39,0.03526905]
[1739310455926,5.0398,198.44,198.4,5.0405]
[1739310456428,21.93908422,198.45,198.39,0.03526905]
[1739310456731,5.0405,198.4,198.39,0.03526905]
[1739310458034,0.03496918,198.41,198.39,0.03526905]
[1739310458433,0.03496918,198.41,198.39,5.07586905]
[1739310458732,0.03496918,198.41,198.39,0.03526905]
[1739310458933,5.07526918,198.41,198.39,0.03526905]
[1739310459123,0.03496918,198.41,198.39,0.03526905]
[1739310459527,5.0405,198.4,198.39,0.03526905]
[1739310462733,0.03496918,198.41,198.39,0.03526905]
[1739310463333,0.03496918,198.41,198.4,5.0405]
[1739310463936,0.03496918,198.41,198.39,0.03526905]
[1739310463937,5.07536918,198.41,198.39,0.03526905]
[1739310464138,0.03496918,198.41,198.39,0.03526905]
[1739310464529,5.0405,198.4,198.39,0.03526905]
[1739310465934,174.84367253,198.7,198.4,15.14]
[1739310466134,142.95045764,198.69,198.53,21.93908422]
[1739310466339,142.95045764,198.69,198.5,21.93908422]
[1739310467139,0.03861808,198.61,198.58,5.06983926]
[1739310467332,142.95045764,198.69,198.58,0.03393926]
[1739310467537,0.03679666,198.61,198.58,0.03393926]
[1739310467735,142.95045764,198.69,198.58,0.03393926]
[1739310467939,0.03351984,198.61,198.58,0.03393926]
[1739310468140,142.95045764,198.69,198.58,0.03393926]
[1739310468336,0.03458954,198.61,198.58,0.03393926]
[1739310468533,142.95045764,198.69,198.58,0.03393926]
[1739310468842,0.03423889,198.61,198.6,5.0355]
[1739310469035,3.1141,198.69,198.57,21.93908422]
[1739310469241,0.03465536,198.62,198.59,0.03229776]
[1739310469437,3.1141,198.69,198.63,5.0347]
[1739310469632,0.03526462,198.66,198.63,5.0347]
[1739310469939,0.03526462,198.66,198.64,0.03795048]
[1739310470543,0.03526462,198.66,198.65,5.0342]
[1739310470938,6.462e-05,198.66,198.65,5.0342]
[1739310471345,1.5549,198.76,198.71,5.0327]
[1739310472536,0.03203115,198.75,198.72,0.03796324]
[1739310479046,5.06373115,198.75,198.72,0.03796324]
[1739310479246,0.03203115,198.75,198.72,0.03796324]
[1739310480143,5.0322,198.73,198.72,0.03796324]